bitfinex-derivatives/quotes_ETHF0:USTF0_20250607
["timestamp","ask_amount","ask_price","bid_price","bid_amount"]
[1749279315793,3.15410566,2497.3,2495.5,3.2078]
[1749279316091,2.685,2497.9,2497.1,3.2078]
[1749279316292,3.48513,2497.9,2497.6,3.2078]
[1749279316598,0.80015,2497.8,2497.6,3.2078]
[1749279316793,0.80017,2497.8,2497.6,3.2078]
[1749279317000,0.80018,2497.7,2497.6,3.2078]
[1749279317495,0.80019,2497.7,2497.6,3.2078]
[1749279318093,0.80018,2497.7,2497.6,3.2078]
[1749279318486,1.346,2497.8,2497.6,3.2078]
[1749279318688,0.80018,2497.7,2497.6,3.2078]
[1749279320796,0.80018,2497.7,2497.6,3.27731834]
[1749279322991,0.80018,2497.7,2497.6,0.06951834]
[1749279324495,1.34501263,2497.9,2497.6,0.06951834]
[1749279324694,2.14514263,2497.9,2497.6,8.35731834]
[1749279324890,1.34501263,2497.9,2497.6,8.35731834]
[1749279325095,0.80015,2497.8,2497.6,8.35731834]
[1749279325497,2.14515263,2497.9,2497.6,9.15752834]
[1749279325693,0.80015,2497.8,2497.6,8.35731834]
[1749279326401,2.14515263,2497.9,2497.6,8.35731834]
[1749279327001,0.80016,2497.8,2497.6,8.35731834]
[1749279327590,2.14515263,2497.9,2497.6,8.35731834]
[1749279327794,2.14514263,2497.9,2497.6,8.35731834]
[1749279328202,0.80016,2497.8,2497.6,8.35731834]
[1749279328697,2.14515263,2497.9,2497.6,9.15752834]
[1749279328901,1.47515263,2497.9,2497.6,9.15752834]
[1749279329103,0.80615263,2497.9,2497.6,9.15752834]
[1749279329403,0.80615263,2497.9,2497.7,1.3089]
[1749279329803,0.80615263,2497.9,2497.6,8.99111834]
[1749279330406,0.80015,2497.8,2497.6,8.99111834]
[1749279330608,0.80614263,2497.9,2497.6,8.99111834]
[1749279331104,0.80015,2497.8,2497.6,8.99111834]
[1749279331306,0.00601263,2497.9,2497.6,8.99111834]
[1749279331810,0.80015,2497.8,2497.6,8.99111834]
[1749279332012,0.00601263,2497.9,2497.6,8.99111834]
[1749279332218,0.80616263,2497.9,2497.6,8.99111834]
[1749279332419,0.80015,2497.8,2497.6,8.99111834]
[1749279332713,0.80018,2497.7,2497.6,8.35731834]
[1749279333719,2.12896,2497.8,2497.6,8.35731834]
[1749279334015,0.80018,2497.7,2497.6,8.35731834]
[1749279334404,1.3288,2497.8,2497.6,8.35731834]
[1749279334913,2.12896,2497.8,2497.6,8.35731834]
[1749279335715,0.80018,2497.7,2497.6,8.35731834]
[1749279336214,0.80018,2497.7,2497.6,3.27731834]
[1749279336417,1.47778,2497.7,2497.6,3.27731834]
[1749279336715,0.6776,2497.7,2497.6,3.27731834]
[1749279337218,1.47778,2497.7,2497.6,3.27731834]
[1749279337716,0.6776,2497.7,2497.6,3.27731834]
[1749279338219,1.47778,2497.7,2497.6,3.27731834]
[1749279338612,0.6776,2497.7,2497.6,3.27731834]
[1749279339515,1.47778,2497.7,2497.6,3.27731834]
[1749279339715,0.6776,2497.7,2497.6,3.27731834]
[1749279340214,0.6776,2497.7,2497.6,4.07753834]
[1749279340414,0.80615263,2497.9,2497.7,0.80016]
[1749279340606,0.00601263,2497.9,2497.6,3.27731834]
[1749279340811,0.00601263,2497.9,2497.8,0.80015]
[1749279341011,0.00601263,2497.9,2497.8,2.19285]
[1749279341418,0.79999,2498.4,2497.8,1.3927]
[1749279341615,0.79999,2498.4,2498.3,3.2078]
[1749279345021,0.80002,2498.2,2498.1,5.078]
[1749279345819,0.80002,2498.2,2498.0,3.2078]
[1749279345820,0.80006,2498.1,2498.0,3.2078]
[1749279346016,0.80006,2498.1,2498.0,8.3068]
[1749279348030,0.80006,2498.1,2498.0,3.2078]
[1749279350125,0.80006,2498.1,2498.0,3.27731834]
[1749279355534,0.80006,2498.1,2498.0,0.06951834]
[1749279356433,1.48556,2498.1,2498.0,0.06951834]
[1749279360435,2.87306,2498.1,2498.0,0.06951834]
[1749279362138,0.80015,2497.8,2497.7,3.2078]
[1749279363536,0.80015,2497.8,2497.7,3.8924]
[1749279364042,0.80015,2497.8,2497.7,3.2078]
[1749279364439,0.80015,2497.8,2497.7,3.27731834]
[1749279376044,0.80015,2497.8,2497.7,8.28431834]
[1749279376250,0.80015,2497.8,2497.7,11.44901306]
[1749279376749,0.80015,2497.8,2497.7,12.83471306]
[1749279380244,1.3707,2498.3,2497.8,0.80013]
[1749279380448,5.21363263,2498.6,2497.9,2.08671]
[1749279380650,1.99983,2498.5,2497.9,1.2866]
[1749279381247,0.80006,2498.1,2497.9,1.2866]
[1749279381949,0.80009,2498.0,2497.9,1.2866]
[1749279384255,0.80009,2498.0,2497.9,4.45129472]
[1749279386664,0.80009,2498.0,2497.9,1.2866]
[1749279387160,0.80007,2498.1,2497.9,2.0867]
[1749279387361,0.80004,2498.2,2498.0,4.00789]
[1749279387548,0.80004,2498.2,2498.1,4.50491145]
[1749279387752,0.80001,2498.3,2498.1,5.30497145]
[1749279387953,0.80001,2498.3,2498.2,2.0052]
[1749279389662,0.00601263,2498.6,2498.3,0.79998]
[1749279389860,0.79996,2498.4,2498.3,3.2078]
[1749279395866,0.79996,2498.4,2498.3,3.27731834]
[1749279405162,0.6902,2498.5,2498.3,3.27731834]
[1749279405368,0.00601263,2498.6,2498.3,4.07727834]
[1749279405570,0.79994,2498.5,2498.3,8.57968979]
[1749279406269,0.00601263,2498.6,2498.3,7.77972979]
[1749279406270,0.79996,2498.4,2498.3,7.77972979]
[1749279406471,0.79996,2498.4,2498.3,6.44762979]
[1749279406864,0.64831263,2498.6,2498.3,6.44762979]
[1749279407171,0.79996,2498.4,2498.3,6.44762979]
[1749279411370,0.79996,2498.4,2498.3,7.24761979]
[1749279412075,0.79996,2498.4,2498.3,6.44762979]
[1749279415469,0.00601263,2498.6,2498.5,0.79993]
[1749279415671,0.00601263,2498.6,2498.5,5.72193]
[1749279415876,0.00601263,2498.6,2498.5,8.88151461]
[1749279416079,0.00601263,2498.6,2498.5,6.98793]
[1749279417472,0.00601263,2498.6,2498.5,2.06593]
[1749279417676,0.00601263,2498.6,2498.5,6.98793]
[1749279418177,0.00601263,2498.6,2498.5,2.06593]
[1749279418379,0.00601263,2498.6,2498.5,6.98793]
[1749279418977,0.00601263,2498.6,2498.5,2.06593]
[1749279419179,0.00601263,2498.6,2498.5,6.98793]
[1749279421977,0.00601263,2498.6,2498.5,6.188]
[1749279422177,0.00601263,2498.6,2498.5,6.98793]
[1749279424381,3.2078,2499.6,2498.5,11.98793]
[1749279424585,0.79967,2499.3,2499.2,3.2078]
[1749279425275,0.15999802,2499.8,2499.2,3.2078]
[1749279425276,11.15410566,2501.0,2499.2,32.4088]
[1749279425474,0.00600048,2500.4,2499.8,3.21380048]
[1749279425672,0.79938,2500.3,2499.9,5.72046]
[1749279425980,0.00600048,2500.4,2499.9,6.2383]
[1749279426185,0.00600048,2500.4,2500.1,3.2078]
[1749279426382,0.00600048,2500.4,2500.2,1.3173]
[1749279426677,0.79939,2500.2,2500.1,3.2078]
[1749279428685,1.335,2500.2,2499.8,3.21380048]
[1749279428885,0.79946,2500.0,2499.8,8.13480048]
[1749279429082,0.79947,2500.0,2499.8,8.13480048]
[1749279429282,1.335,2500.2,2499.8,8.13480048]
[1749279429483,0.79941,2500.1,2499.8,8.13480048]
[1749279429782,0.79943,2500.1,2499.8,8.13480048]
[1749279429984,1.335,2500.2,2499.8,8.93430048]
[1749279430288,1.335,2500.2,2499.8,4.01330048]
[1749279430487,1.3238,2500.3,2499.8,8.93430048]
[1749279430689,0.7994,2500.2,2499.8,10.31010048]
[1749279430884,0.79942,2500.1,2499.8,10.31010048]
[1749279431184,0.79946,2500.0,2499.8,8.13480048]
[1749279432190,0.79948,2499.9,2499.8,3.21380048]
[1749279432787,0.79947,2500.0,2499.8,3.21380048]
[1749279433394,0.79949,2499.9,2499.8,3.21380048]
[1749279434685,0.79947,2500.0,2499.8,3.21380048]
[1749279435890,2.6808,2500.3,2499.8,3.21380048]
[1749279435891,0.79948,2499.9,2499.8,3.21380048]
[1749279436089,0.79946,2500.0,2499.8,4.01331048]
[1749279436285,0.79948,2499.9,2499.8,3.21380048]
[1749279436485,0.79948,2500.0,2499.8,3.21380048]
[1749279436685,0.79948,2499.9,2499.8,3.21380048]
[1749279440092,0.79948,2499.9,2499.8,0.00600048]
[1749279440587,2.12608,2499.9,2499.8,0.07551882]
[1749279440791,0.79961,2499.5,2499.4,4.955]
[1749279443102,0.79967,2499.4,2499.2,0.00600048]
[1749279443803,1.3266,2499.7,2499.2,0.00600048]
[1749279444102,0.79968,2499.3,2499.2,0.00600048]
[1749279449217,1.3266,2499.7,2499.2,1.31110048]
[1749279449522,0.79968,2499.3,2499.2,0.00600048]
[1749279450213,0.79963,2499.5,2499.3,0.79967]
[1749279450416,0.79963,2499.5,2499.4,0.6945]
[1749279454516,0.79968,2499.3,2499.2,3.16682912]
[1749279454815,0.79968,2499.3,2499.2,0.00600048]
[1749279455017,0.79968,2499.3,2499.2,0.80571048]
[1749279455206,0.79968,2499.3,2499.2,1.33440048]
[1749279456110,0.79968,2499.3,2499.2,0.00600048]
[1749279460813,0.79968,2499.3,2499.2,0.80571048]
[1749279461014,0.79966,2499.4,2499.2,5.27973912]
[1749279461520,0.79968,2499.3,2499.2,4.48002912]
[1749279463314,0.79968,2499.3,2499.2,6.37462912]
[1749279465220,0.79968,2499.3,2499.2,7.17433912]
[1749279465518,0.79968,2499.3,2499.2,8.47003912]
[1749279465720,0.79968,2499.3,2499.2,5.30921048]
[1749279465924,1.3793,2499.8,2499.4,0.06951834]
[1749279466319,0.79964,2499.5,2499.4,0.06951834]
[1749279468623,0.79964,2499.5,2499.4,3.23530991]
[1749279469120,0.79964,2499.5,2499.4,0.06951834]
[1749279483922,4.00744,2499.5,2499.4,0.06951834]
[1749279484318,4.00744,2499.5,2499.4,8.34e-06]
[1749279490029,5.30794,2499.5,2499.4,8.34e-06]
[1749279492629,4.00744,2499.5,2499.4,8.34e-06]
[1749279493633,0.79964,2499.5,2499.4,8.34e-06]
[1749279498131,2.14234,2499.5,2499.4,8.34e-06]
[1749279499033,0.79964,2499.5,2499.4,8.34e-06]
[1749279508640,1.81610654,2499.5,2499.4,8.34e-06]
[1749279508830,0.79964,2499.5,2499.4,8.34e-06]
[1749279509034,1.81610659,2499.5,2499.4,8.34e-06]
[1749279509233,0.79964,2499.5,2499.4,8.34e-06]
[1749279509440,1.81610027,2499.5,2499.4,8.34e-06]
[1749279509634,0.79968,2499.3,2499.2,3.86400048]
[1749279513541,0.79968,2499.3,2499.2,0.65620048]
[1749279514046,0.79981,2498.9,2498.8,3.2078]
[1749279517051,0.79987,2498.7,2498.6,0.00600048]
[1749279517252,0.79987,2498.7,2498.6,0.67770048]
[1749279529962,0.79987,2498.7,2498.6,0.74721882]
[1749279530957,0.79987,2498.7,2498.6,0.67770048]
[1749279531958,0.79987,2498.7,2498.6,0.74721882]
[1749279532960,0.79987,2498.7,2498.6,0.67770048]
[1749279533950,0.79987,2498.7,2498.6,0.74721882]
[1749279536656,0.00600048,2499.1,2498.6,0.74721882]
[1749279536863,0.79984,2498.8,2498.7,4.4897]
[1749279541668,0.00600048,2499.1,2498.7,4.4897]
[1749279541974,0.79984,2498.8,2498.7,3.2078]
[1749279543270,0.79984,2498.8,2498.7,4.5457]
[1749279548372,0.79983,2498.9,2498.7,5.34557]
[1749279548670,0.79983,2498.9,2498.8,1.3428]
[1749279549577,0.79983,2498.9,2498.7,3.2078]
[1749279550181,0.79983,2498.9,2498.7,4.00767]
[1749279550582,0.7998,2499.0,2498.7,5.35047]
[1749279551083,0.7998,2499.0,2498.8,0.79983]
[1749279551276,0.79978,2499.0,2498.8,0.79982]
[1749279551478,0.00600048,2499.1,2498.7,3.2078]
[1749279551679,0.79984,2498.8,2498.7,3.2078]
[1749279551884,1.49053,2498.9,2498.7,4.00767]
[1749279552086,0.6907,2498.9,2498.8,0.79984]
[1749279552777,1.49051,2498.9,2498.7,4.00765]
[1749279553286,1.35820048,2499.1,2498.8,0.79984]
[1749279553486,0.7998,2499.0,2498.8,0.79984]
[1749279554684,0.7998,2499.0,2498.8,0.79982]
[1749279556886,0.79981,2498.9,2498.7,4.00765]
[1749279557292,1.4899,2499.0,2498.7,4.00765]
[1749279557686,0.79981,2498.9,2498.7,4.00765]
[1749279557888,0.79984,2498.8,2498.7,3.2078]
[1749279558191,4.79984,2498.9,2498.7,3.2078]
[1749279558386,4.0,2498.9,2498.7,3.2078]
[1749279558590,4.0,2498.9,2498.8,0.79984]
[1749279558789,4.0,2498.9,2498.8,2.19004]
[1749279558991,4.0,2498.9,2498.8,7.19004]
[1749279559493,4.0,2498.9,2498.8,5.67284]
[1749279559994,4.0,2498.9,2498.8,7.06304]
[1749279560386,4.0,2498.9,2498.8,7.05704]
[1749279564895,4.0,2498.9,2498.8,5.66684]
[1749279569409,4.0,2498.9,2498.8,0.79984]
[1749279569706,4.0,2498.9,2498.8,7.00274]
[1749279573800,0.79965,2499.4,2498.8,7.00274]
[1749279573801,3.2078,2502.5,2500.2,3.2078]
[1749279574008,0.27261762,2502.3,2502.0,3.2078]
[1749279574200,0.27261762,2502.3,2502.0,3.61670929]
[1749279574604,1.28980048,2502.4,2502.1,1.56949554]
[1749279574802,1.28980048,2502.4,2502.3,3.2078]
[1749279574998,1.28980048,2502.4,2502.3,4.38500963]
[1749279575199,1.5624181,2502.4,2502.3,3.2078]
[1749279575403,0.79873,2502.3,2502.2,3.2078]
[1749279575604,6.55641762,2502.3,2501.9,4.39101011]
[1749279575814,1.07143762,2502.0,2501.9,0.00600048]
[1749279576198,0.00600048,2502.4,2501.9,3.21380048]
[1749279576407,1.36700048,2502.4,2501.9,3.21380048]
[1749279576710,0.79881,2502.1,2501.9,3.21380048]
[1749279576911,2.0299,2502.0,2501.9,3.21380048]
[1749279577809,2.82872,2502.0,2501.9,3.21380048]
[1749279579105,2.0299,2502.0,2501.9,3.21380048]
[1749279579507,2.82872,2502.0,2501.9,3.21380048]
[1749279585814,6.03652,2502.0,2501.9,0.00600048]
[1749279587115,2.82872,2502.0,2501.9,0.00600048]
[1749279588009,7.82872,2502.0,2501.9,0.00600048]
[1749279588809,2.82872,2502.0,2501.9,0.00600048]
[1749279591813,1.46772,2502.0,2501.9,0.00600048]
[1749279592520,1.46772,2502.0,2501.9,3.21380048]
[1749279593616,1.3103,2502.3,2501.9,3.21380048]
[1749279593802,0.79882,2502.0,2501.9,3.21380048]
[1749279594208,0.7988,2502.1,2501.9,4.01265048]
[1749279594410,0.7988,2502.1,2501.9,3.21380048]
[1749279594607,0.79882,2502.0,2501.9,3.21380048]
[1749279594812,0.79881,2502.1,2501.9,4.56260048]
[1749279595208,0.79882,2502.0,2501.9,4.56260048]
[1749279596918,0.00600048,2502.4,2501.9,4.56260048]
[1749279597216,0.79872,2502.3,2502.2,3.2078]
[1749279597915,0.00600048,2502.4,2502.2,3.2078]
[1749279598216,0.79872,2502.3,2502.2,3.2078]
[1749279598916,0.00600048,2502.4,2502.2,3.2078]
[1749279599118,0.79872,2502.3,2502.2,3.2078]
[1749279600414,0.79872,2502.3,2502.2,4.38500963]
[1749279600621,0.80470048,2502.4,2502.2,5.18374963]
[1749279600816,0.80470048,2502.4,2502.2,4.38500963]
[1749279601013,0.79872,2502.3,2502.2,4.38500963]
[1749279601313,0.79872,2502.3,2502.2,4.77729554]
[1749279602426,0.79872,2502.3,2502.2,5.56204331]
[1749279602611,0.79872,2502.3,2502.2,10.56204331]
[1749279602819,0.00600048,2502.4,2502.3,0.79872]
[1749279603014,0.00600048,2502.4,2502.3,1.2943]
[1749279603221,0.80469048,2502.4,2502.3,4.43390765]
[1749279603523,0.80469048,2502.4,2502.3,1.2943]
[1749279603821,0.80469048,2502.4,2502.2,8.6218]
[1749279603822,0.79872,2502.3,2502.2,3.2078]
[1749279604720,5.21056048,2502.4,2502.2,2.36318086]
[1749279604917,0.79878,2502.1,2502.0,1.57601812]
[1749279605217,0.79885,2501.9,2501.8,3.2078]
[1749279606118,2.17225,2501.9,2501.8,3.2078]
[1749279606720,0.79885,2501.9,2501.8,3.2078]
[1749279607717,0.79891,2501.7,2501.6,0.00600048]
[1749279608115,0.79891,2501.7,2501.6,4.8e-07]
[1749279608323,2.15501,2501.7,2501.6,4.8e-07]
[1749279608828,7.15501,2501.7,2501.6,4.8e-07]
[1749279610722,7.15097009,2501.7,2501.6,4.8e-07]
[1749279611024,0.79898,2501.5,2501.4,8.82e-06]
[1749279611321,1.99763,2501.3,2500.4,2.78693]
[1749279611625,3.2078,2501.1,2500.4,1.9876]
[1749279611829,0.79925,2500.7,2500.5,0.00600048]
[1749279612116,0.79927,2500.6,2500.5,1.33740048]
[1749279612621,0.79927,2500.6,2500.5,0.00600048]
[1749279614717,0.79946,2500.0,2499.9,0.695]
[1749279615530,0.79942,2500.2,2499.9,2.0673]
[1749279615827,5.357,2500.5,2499.9,2.0673]
[1749279616029,0.79944,2500.1,2499.9,2.0673]
[1749279616620,0.79946,2500.0,2499.9,2.0673]
[1749279616820,0.79944,2500.1,2499.9,2.0673]
[1749279617429,0.79945,2500.0,2499.9,2.0673]
[1749279618025,0.79945,2500.1,2499.9,2.0673]
[1749279618225,0.79946,2500.0,2499.9,2.0673]
[1749279618922,0.79946,2500.0,2499.9,0.695]
[1749279620118,0.79949,2499.9,2499.8,3.21181388]
[1749279620726,3.90451,2500.3,2499.8,3.21181388]
[1749279620932,0.79949,2499.9,2499.8,3.21181388]
[1749279624131,0.79949,2499.9,2499.8,0.00401388]
[1749279624830,8.5658,2500.1,2499.8,0.00401388]
[1749279625129,0.79949,2499.9,2499.8,0.00401388]
[1749279625330,0.79949,2499.9,2499.8,1.35201388]
[1749279626030,0.79949,2499.9,2499.8,0.00401388]
[1749279626529,0.79949,2499.9,2499.8,3.88e-06]
[1749279634636,0.79968,2499.3,2499.2,3.8568]
[1749279635035,0.79968,2499.3,2499.2,5.2007]
[1749279637438,0.79968,2499.3,2499.2,7.55162883]
[1749279638540,0.79968,2499.3,2499.2,3.2078]
[1749279644351,0.00600048,2499.5,2499.2,3.2078]
[1749279644548,0.79968,2499.3,2499.2,6.82512883]
[1749279644754,0.79968,2499.3,2499.2,5.55872883]
[1749279649958,0.79968,2499.3,2499.2,5.62824717]
[1749279654063,0.79968,2499.3,2499.2,3.27731834]
[1749279654563,0.79968,2499.3,2499.2,5.62824717]
[1749279655464,0.79968,2499.3,2499.2,3.27731834]
[1749279662377,0.79968,2499.3,2499.2,6.42614343]
[1749279662671,0.79968,2499.3,2499.2,3.27731834]
[1749279662878,0.79968,2499.3,2499.2,0.06951834]
[1749279663270,0.79968,2499.3,2499.2,2.38025139]
[1749279663576,0.79981,2498.9,2498.8,6.35662509]
[1749279663874,0.79987,2498.7,2498.6,3.14882509]
[1749279664074,0.7999,2498.6,2498.5,6.35662509]
[1749279664274,0.7999,2498.6,2498.5,6.38048775]
[1749279665174,0.7999,2498.6,2498.5,3.2078]
[1749279665872,0.7999,2498.6,2498.3,3.17268775]
[1749279666076,0.8,2498.3,2498.2,3.2078]
[1749279669179,0.8,2498.3,2497.9,0.6941]
[1749279669180,0.8001,2498.0,2497.9,6.37946035]
[1749279669388,0.8001,2498.0,2497.9,3.2078]
[1749279671971,2.081,2498.0,2497.9,3.2078]
[1749279672373,0.00600048,2498.2,2497.9,4.00791]
[1749279672676,0.80604048,2498.2,2498.0,1.3154]
[1749279673273,0.80006,2498.1,2498.0,1.3154]
[1749279673884,0.8001,2498.0,2497.9,3.2078]
[1749279674584,0.80009,2498.1,2497.9,3.2078]
[1749279674782,0.00600048,2498.2,2497.9,3.2078]
[1749279674988,0.00600048,2498.2,2498.0,1.3307]
[1749279675194,0.8001,2498.1,2498.0,1.3307]
[1749279677378,0.80006,2498.1,2498.0,1.3307]
[1749279678279,0.8001,2498.0,2497.9,3.2078]
[1749279694696,0.8001,2498.0,2497.9,3.27731834]
[1749279698302,0.8001,2498.0,2497.9,7.80127869]
[1749279698504,0.8001,2498.0,2497.9,4.62961834]
[1749279700613,0.8001,2498.0,2497.9,3.27731834]
[1749279701607,0.8001,2498.0,2497.9,6.44897869]
[1749279702117,0.8001,2498.0,2497.9,3.27731834]
[1749279702414,0.8001,2498.0,2497.9,6.44897869]
[1749279702710,0.8001,2498.0,2497.9,3.27731834]
[1749279703215,0.8001,2498.0,2497.9,6.44897869]
[1749279703613,0.8001,2498.0,2497.9,3.27731834]
[1749279703816,0.00600048,2498.2,2498.1,0.80006]
[1749279704815,0.00600048,2498.2,2498.0,2.6361]
[1749279705114,0.80603048,2498.2,2498.1,3.17661408]
[1749279706314,0.80006,2498.1,2498.0,5.15201408]
[1749279706520,0.80006,2498.1,2498.0,3.17661408]
[1749279708420,0.80011,2498.0,2497.9,6.45393242]
[1749279708715,1.43771,2498.0,2497.9,3.27731834]
[1749279710021,1.43771,2498.0,2497.9,3.2078]
[1749279712918,0.80018,2497.8,2497.7,1.3934]
[1749279713125,0.80013,2498.0,2497.7,4.6012]
[1749279713326,5.02100048,2498.2,2497.8,3.17661408]
[1749279713526,0.80014,2498.0,2497.8,4.45841408]
[1749279713725,0.80015,2497.9,2497.7,4.008]
[1749279714425,5.02100048,2498.2,2497.7,4.008]
[1749279714426,0.80018,2497.8,2497.7,3.2078]
[1749279715426,0.80017,2497.9,2497.7,4.008]
[1749279715624,3.2078,2498.0,2497.6,3.94596881]
[1749279715831,0.80031,2497.4,2497.3,3.17372762]
[1749279716126,2.00049,2497.8,2497.5,0.80025]
[1749279716127,0.80019,2497.8,2497.5,0.80025]
[1749279716325,0.80019,2497.8,2497.6,3.81224132]
[1749279716524,0.8002,2497.8,2497.7,3.17464132]
[1749279717724,0.80021,2497.7,2497.6,0.6376]
[1749279718120,0.80024,2497.6,2497.5,3.2078]
[1749279718917,0.80023,2497.7,2497.5,4.00806]
[1749279719118,0.80023,2497.7,2497.5,3.2078]
[1749279719319,0.80023,2497.7,2497.5,4.00807]
[1749279721129,0.80024,2497.6,2497.5,3.2078]
[1749279721831,1.4024,2498.0,2497.5,4.00808]
[1749279721832,0.80023,2497.7,2497.5,4.00808]
[1749279723436,0.80024,2497.7,2497.5,4.00807]
[1749279724534,0.80024,2497.6,2497.5,4.00807]
[1749279725036,0.80024,2497.6,2497.5,0.80027]
[1749279725236,0.80024,2497.6,2497.5,4.07758834]
[1749279725837,0.80024,2497.6,2497.5,0.06951834]
[1749279726734,2.15214,2497.6,2497.5,0.06951834]
[1749279731240,0.80024,2497.6,2497.5,0.06951834]
[1749279733631,1.3299,2497.7,2497.5,3.27731834]
[1749279733830,0.80024,2497.6,2497.5,3.27731834]
[1749279735446,0.80023,2497.7,2497.5,4.07758834]
[1749279735637,0.80023,2497.7,2497.6,1.9052]
[1749279736540,0.80023,2497.7,2497.6,0.6388]
[1749279737244,0.80024,2497.6,2497.5,3.27731834]
[1749279737446,0.80024,2497.6,2497.5,0.06951834]
[1749279738937,1.45414,2497.6,2497.5,0.06951834]
[1749279739341,0.80037,2497.2,2497.1,4.4742]
[1749279743142,0.80037,2497.2,2497.1,3.2078]
[1749279743740,0.80047,2496.9,2496.8,4.4997]
[1749279752450,0.80047,2496.9,2496.8,3.2078]
[1749279754748,0.80047,2496.9,2496.8,0.06951834]
[1749279769655,4.00827,2496.9,2496.8,8.34e-06]
[1749279769861,8.94527,2496.9,2496.8,8.34e-06]
[1749279770054,4.00827,2496.9,2496.8,8.34e-06]
[1749279770359,0.80047,2496.9,2496.8,8.34e-06]
[1749279773067,0.80047,2496.9,2496.8,4.47770834]
[1749279774159,0.657,2497.2,2496.8,4.47770834]
[1749279774368,0.80046,2497.0,2496.9,1.3597]
[1749279776868,0.80043,2497.1,2496.9,2.16017]
[1749279777169,0.8004,2497.1,2497.0,2.0163]
[1749279777869,2.00052,2497.8,2497.0,7.0163]
[1749279778068,0.6413,2497.6,2497.1,1.3831]
[1749279778371,0.80037,2497.2,2497.1,1.3831]
[1749279780961,0.8004,2497.1,2497.0,0.6332]
[1749279783174,0.80047,2496.9,2496.8,4.59160834]
[1749279783667,0.80047,2496.9,2496.8,3.20780834]
[1749279784370,0.80047,2496.9,2496.8,8.34e-06]
[1749279785267,0.80056,2496.6,2496.5,3.2078]
[1749279785773,0.80067,2496.3,2496.2,3.2078]
[1749279786865,0.80074,2496.1,2495.9,3.2078]
[1749279787467,0.80076,2496.0,2495.9,3.2078]
[1749279787768,0.80074,2496.1,2495.9,3.2078]
[1749279787977,0.80074,2496.1,2496.0,1.2689]
[1749279788168,0.80076,2496.0,2495.9,3.2078]
[1749279791074,2.19546,2496.0,2495.9,3.2078]
[1749279791275,0.80076,2496.0,2495.9,3.2078]
[1749279791875,2.19976,2496.0,2495.9,3.2078]
[1749279792077,0.80076,2496.0,2495.9,3.2078]
[1749279792277,0.6335,2496.1,2495.6,3.2078]
[1749279792579,0.80091,2495.6,2495.3,4.00877]
[1749279792769,0.8009,2495.6,2495.4,1.3824]
[1749279792971,1.399,2495.9,2495.3,3.2078]
[1749279793170,0.80094,2495.5,2495.3,4.00878]
[1749279793367,1.399,2495.9,2495.3,3.2078]
[1749279793573,1.399,2495.9,2494.8,4.60466881]
[1749279793574,0.80096,2495.4,2495.1,0.80103]
[1749279793876,0.80097,2495.4,2495.1,0.80103]
[1749279794076,0.80099,2495.3,2495.1,2.84543]
[1749279794276,0.80099,2495.3,2495.0,4.00886]
[1749279794478,0.80103,2495.2,2495.0,4.00888]
[1749279794876,0.801,2495.3,2495.1,0.80104]
[1749279795079,0.80102,2495.2,2495.0,4.00887]
[1749279795384,0.80105,2495.1,2495.0,3.2078]
[1749279795680,1.379,2495.4,2495.0,3.2078]
[1749279795978,0.80099,2495.3,2495.1,0.80104]
[1749279796679,0.80101,2495.3,2495.0,4.00887]
[1749279796880,0.801,2495.3,2495.0,4.00887]
[1749279797080,1.379,2495.4,2495.0,3.2078]
[1749279797279,0.80105,2495.1,2495.0,3.2078]
[1749279797675,0.80103,2495.2,2495.0,3.2078]
[1749279797882,0.80105,2495.1,2495.0,3.2078]
[1749279798083,2.13795,2495.1,2495.0,3.2078]
[1749279799587,2.13795,2495.1,2495.0,0.06951834]
[1749279800081,2.13795,2495.1,2494.4,0.80126]
[1749279800082,2.0027,2495.0,2493.9,3.2078]
[1749279800278,3.2078,2494.7,2494.1,0.80135]
[1749279800478,8.1438,2494.7,2494.2,3.2078]
[1749279800779,0.80138,2494.1,2493.9,3.2078]
[1749279801187,0.00601263,2494.2,2493.9,3.2078]
[1749279801480,1.46889,2494.1,2493.9,3.2078]
[1749279802586,0.8014,2494.0,2493.9,3.2078]
[1749279802889,0.6675,2494.1,2493.9,3.2078]
[1749279803081,1.46889,2494.1,2493.9,3.2078]
[1749279803282,0.8014,2494.0,2493.9,3.2078]
[1749279803989,1.46889,2494.1,2493.9,3.2078]
[1749279804485,0.8014,2494.0,2493.9,3.2078]
[1749279804689,2.1523,2494.0,2493.9,3.2078]
[1749279805684,0.80151,2493.7,2493.6,3.2078]
[1749279805986,1.3509,2494.0,2493.2,4.00944]
[1749279805987,3.2078,2493.8,2493.2,4.00944]
[1749279806184,0.80159,2493.5,2493.2,4.00945]
[1749279806388,1.3509,2493.6,2493.2,3.2078]
[1749279806582,0.6831,2493.5,2493.2,3.2078]
[1749279806784,0.80162,2493.3,2493.2,3.2078]
[1749279806984,0.80161,2493.4,2493.2,3.2078]
[1749279807184,4.937,2493.3,2491.6,5.95137881]
[1749279807391,0.00601263,2492.7,2492.6,0.80185]
[1749279807784,3.2078,2493.8,2492.7,2.00453]
[1749279807983,3.2078,2493.8,2493.0,3.2078]
[1749279808186,3.2078,2494.0,2493.1,2.0042]
[1749279808687,0.80749263,2493.8,2493.5,0.80155]
[1749279808885,0.00601263,2493.8,2493.5,0.80155]
[1749279809084,0.00601263,2493.8,2493.6,2.17171]
[1749279809393,0.00601263,2493.8,2493.7,1.3702]
[1749279809892,0.00601263,2493.8,2493.7,2.1717]
[1749279810684,0.00601263,2493.8,2493.7,7.1717]
[1749279811596,0.00601263,2493.8,2493.7,7.836]
[1749279811891,0.80129,2494.4,2494.1,0.80134]
[1749279812190,4.00902,2494.6,2494.3,0.8013]
[1749279812388,4.00902,2494.6,2494.4,1.3006]
[1749279812785,4.00902,2494.6,2494.4,1.9649]
[1749279813685,0.80124,2494.5,2494.4,1.9649]
[1749279814290,3.2078,2494.6,2494.0,0.6905]
[1749279814592,3.2078,2494.6,2494.1,1.3979]